bitfinex-derivatives/quotes_SOLF0:USTF0_20250509
["timestamp","ask_amount","ask_price","bid_price","bid_amount"]
[1746794713872,5.8105,172.13,172.08,5.8121]
[1746794714072,10.96314766,172.17,172.06,1.9534]
[1746794714270,5.812,172.09,172.06,1.9534]
[1746794714576,27.9,172.12,172.03,460.34]
[1746794715075,5.812,172.09,172.04,5.8132]
[1746794715373,5.812,172.09,172.03,460.34]
[1746794715574,5.812,172.09,172.04,5.8132]
[1746794715875,5.8121,172.08,172.03,460.34]
[1746794716177,5.8121,172.08,172.02,27.9]
[1746794716480,5.8119,172.09,172.04,5.8134]
[1746794717383,27.9,172.12,172.04,5.8134]
[1746794717973,5.812,172.09,172.04,5.8134]
[1746794718878,27.9,172.12,172.0,2.94562209]
[1746794719174,5.8522,172.11,172.0,1.9342]
[1746794719386,10.96314766,172.09,171.99,5.815]
[1746794719881,5.8137,172.04,172.0,5.8147]
[1746794720182,27.9,172.07,171.98,460.26]
[1746794720979,27.9,172.07,171.99,5.815]
[1746794721280,27.9,172.07,171.98,460.26]
[1746794721481,27.9,172.07,171.98,466.0753]
[1746794721669,27.9,172.07,171.98,460.26]
[1746794722178,27.9,172.07,171.98,466.0752]
[1746794722378,27.9,172.07,171.96,29.6966]
[1746794722581,5.8147,172.01,171.97,5.8156]
[1746794722978,27.9,172.07,171.94,1.9375]
[1746794723179,5.8153,171.99,171.95,5.8163]
[1746794723386,5.8153,171.99,171.94,1.9375]
[1746794724078,5.8153,171.99,171.95,5.8163]
[1746794724272,5.8153,171.99,171.93,1.927]
[1746794724477,5.8148,172.0,171.96,5.8158]
[1746794725478,3.6363,172.04,171.95,1.0]
[1746794725684,27.9,172.05,171.95,1.0]
[1746794725982,27.9,172.07,172.01,5.8142]
[1746794726483,27.9,172.07,171.97,27.9]
[1746794726686,5.8128,172.06,172.02,5.8138]
[1746794727784,27.9,172.07,172.03,5.8137]
[1746794727985,27.9,172.07,171.98,1.8583]
[1746794728585,5.814,172.03,171.99,5.815]
[1746794729284,5.814,172.03,172.0,5.8146]
[1746794729784,5.8135,172.04,172.01,5.8142]
[1746794730082,5.8135,172.04,171.97,27.9]
[1746794730782,5.6545,172.1,171.97,27.9]
[1746794730988,27.9,172.09,171.98,1.7953]
[1746794731174,5.8121,172.08,171.98,1.7953]
[1746794731677,5.8121,172.08,172.04,5.8133]
[1746794732088,5.8121,172.08,171.98,1.7953]
[1746794733084,5.8121,172.08,172.04,5.8133]
[1746794734085,5.8121,172.08,171.98,1.7953]
[1746794734482,5.8125,172.07,172.03,5.8135]
[1746794734789,27.9,172.09,171.98,1.7953]
[1746794735086,33.712,172.09,172.04,5.8132]
[1746794735387,27.9,172.09,172.04,5.8132]
[1746794735588,5.8122,172.08,172.04,5.8132]
[1746794736387,5.8122,172.08,172.05,5.813]
[1746794736787,27.9,172.09,171.98,1.7953]
[1746794737090,27.9,172.12,171.98,1.7953]
[1746794737287,27.9,172.12,171.98,12.75844766]
[1746794737685,27.9,172.13,171.98,12.75844766]
[1746794737885,5.8108,172.12,171.98,12.75844766]
[1746794738187,3.7426,172.15,171.98,12.75844766]
[1746794738382,9.5525,172.15,171.98,12.75844766]
[1746794738582,3.7426,172.15,171.98,12.75844766]
[1746794738782,3.7426,172.15,172.12,5.8105]
[1746794739285,1.9294,172.16,172.06,27.88]
[1746794739488,27.88,172.16,172.06,27.88]
[1746794739685,33.6888,172.18,172.07,1.8989]
[1746794739990,1.8578,172.2,172.07,1.8989]
[1746794740189,27.88,172.19,172.08,3.8654]
[1746794740385,27.88,172.19,172.14,5.8098]
[1746794740595,33.6885,172.19,172.08,3.8654]
[1746794740885,33.6885,172.19,172.15,5.8096]
[1746794741190,81.39382905,172.23,172.12,27.88]
[1746794741584,81.39382905,172.23,172.16,5.8093]
[1746794741789,81.39382905,172.23,172.12,27.88]
[1746794741991,81.39382905,172.23,172.13,5.8101]
[1746794742189,5.8082,172.2,172.13,5.8101]
[1746794742391,5.8082,172.2,172.12,27.88]
[1746794742598,27.88,172.24,172.12,27.88]
[1746794742599,27.88,172.24,172.14,5.8098]
[1746794742790,5.8077,172.21,172.14,5.8098]
[1746794743090,27.88,172.24,172.13,5.8101]
[1746794743288,27.88,172.24,172.12,27.88]
[1746794743691,27.88,172.24,172.12,33.6906]
[1746794743891,27.88,172.24,172.12,27.88]
[1746794744796,27.88,172.24,172.13,5.8103]
[1746794745291,5.8086,172.19,172.13,5.8103]
[1746794745491,5.8086,172.19,172.14,5.81]
[1746794745692,27.88,172.24,172.12,27.88]
[1746794745895,27.88,172.24,172.11,5.8109]
[1746794746094,27.88,172.24,172.11,33.6709]
[1746794746296,5.8099,172.15,172.08,3.8654]
[1746794746491,5.8099,172.15,172.09,27.86]
[1746794746790,27.88,172.24,172.09,27.86]
[1746794746990,5.8097,172.16,172.11,5.8111]
[1746794747596,5.8099,172.15,172.1,5.8113]
[1746794747798,27.88,172.24,172.09,27.86]
[1746794748401,5.8096,172.16,172.11,5.811]
[1746794748593,27.88,172.24,172.11,5.811]
[1746794748991,5.8097,172.16,172.11,5.811]
[1746794749194,27.88,172.24,172.09,27.86]
[1746794749498,5.8104,172.14,172.09,27.86]
[1746794749698,5.8104,172.14,172.09,33.6715]
[1746794749898,27.86,172.19,172.09,27.86]
[1746794750196,27.86,172.19,172.08,3.8654]
[1746794750403,1.9294,172.18,172.08,3.8654]
[1746794750596,5.8112,172.11,172.08,3.8654]
[1746794750799,5.5812,172.18,172.08,3.8654]
[1746794751102,5.811,172.12,172.08,3.8654]
[1746794751501,5.5812,172.18,172.08,3.8654]
[1746794751903,27.86,172.19,172.08,3.8654]
[1746794752102,11.6153,172.22,172.08,3.8654]
[1746794752303,27.86,172.21,172.08,3.8654]
[1746794752707,5.81,172.15,172.08,3.8654]
[1746794752904,27.86,172.2,172.08,3.8654]
[1746794753205,5.81,172.15,172.08,3.8654]
[1746794754201,5.81,172.15,172.1,5.8112]
[1746794754504,5.81,172.15,172.08,3.8654]
[1746794754505,5.8096,172.16,172.08,3.8654]
[1746794754707,27.86,172.21,172.12,5.8107]
[1746794754902,27.86,172.21,172.11,27.86]
[1746794755906,27.86,172.21,172.11,33.6708]
[1746794756107,5.8096,172.16,172.11,33.6708]
[1746794757508,5.8091,172.17,172.12,5.8107]
[1746794757704,16.60324766,172.24,172.11,27.86]
[1746794757910,44.44324766,172.24,172.11,27.86]
[1746794758502,10.96314766,172.2,172.07,1.8989]
[1746794758708,27.84,172.19,172.07,1.8989]
[1746794759007,27.84,172.19,172.07,3.8745]
[1746794759207,5.8097,172.15,172.11,5.8109]
[1746794759408,27.84,172.19,172.07,3.8745]
[1746794759809,27.84,172.23,172.07,3.8745]
[1746794760309,5.8083,172.2,172.15,5.8095]
[1746794760510,27.84,172.23,172.14,27.84]
[1746794760710,5.6401,172.24,172.14,27.84]
[1746794760910,5.8088,172.18,172.14,33.6499]
[1746794761210,27.84,172.23,172.14,27.84]
[1746794761405,5.8082,172.2,172.16,5.8092]
[1746794762211,33.4801,172.24,172.16,5.8092]
[1746794762412,33.4801,172.24,172.17,5.8089]
[1746794762711,5.6401,172.24,172.14,27.84]
[1746794762906,5.8076,172.22,172.14,27.84]
[1746794763414,5.8071,172.23,172.19,5.8084]
[1746794764213,5.6401,172.24,172.14,27.84]
[1746794764808,5.6401,172.24,172.17,5.8089]
[1746794765214,5.6401,172.24,172.14,27.84]
[1746794765515,10.96314766,172.22,172.11,27.84]
[1746794765817,5.8103,172.14,172.11,5.811]
[1746794766008,27.84,172.16,172.07,31.7145]
[1746794766510,5.8106,172.13,172.07,3.8745]
[1746794766812,5.81,172.14,172.07,3.8745]
[1746794767016,27.84,172.16,172.07,3.8745]
[1746794767412,27.84,172.16,172.1,5.8111]
[1746794768617,27.84,172.16,172.11,5.8111]
[1746794768812,27.84,172.16,172.07,31.7145]
[1746794769120,5.8106,172.13,172.07,31.7145]
[1746794769312,5.8106,172.13,172.1,5.8113]
[1746794771915,5.8102,172.14,172.11,5.811]
[1746794772113,27.84,172.16,172.07,31.7145]
[1746794772311,5.8104,172.13,172.1,5.8112]
[1746794774217,5.8101,172.14,172.11,5.811]
[1746794774407,27.84,172.16,172.07,31.7145]
[1746794774608,5.81,172.15,172.11,5.8108]
[1746794774818,5.7204,172.17,172.07,31.7145]
[1746794775018,33.5404,172.17,172.07,31.7145]
[1746794775214,5.7204,172.17,172.07,31.7145]
[1746794775415,27.82,172.2,172.07,31.7145]
[1746794775815,5.8087,172.18,172.14,5.8099]
[1746794776118,27.82,172.2,172.07,31.7145]
[1746794776321,27.82,172.2,172.07,31.6945]
[1746794776715,5.8096,172.16,172.12,5.8107]
[1746794777123,5.8096,172.16,172.07,31.6945]
[1746794777724,27.82,172.2,172.07,31.6945]
[1746794778222,5.8099,172.15,172.07,31.6945]
[1746794778424,5.8099,172.15,172.12,5.8107]
[1746794779020,5.8102,172.14,172.11,5.811]
[1746794779224,10.96314766,172.19,172.11,5.811]
[1746794779417,10.96314766,172.19,172.07,27.82]
[1746794779619,5.8094,172.16,172.13,5.8104]
[1746794779923,5.8094,172.16,172.07,27.82]
[1746794780222,10.96314766,172.19,172.12,5.8105]
[1746794780924,5.8097,172.15,172.12,5.8105]
[1746794782726,5.8104,172.13,172.09,5.8117]
[1746794782926,27.82,172.15,172.09,5.8117]
[1746794783128,27.82,172.15,172.06,27.82]
[1746794783430,5.8111,172.11,172.08,5.812]
[1746794783727,5.687,172.14,172.08,5.812]
[1746794783928,5.8108,172.12,172.08,5.812]
[1746794784227,5.687,172.14,172.08,5.812]
[1746794784426,5.687,172.14,172.01,4.73306044]
[1746794784630,5.687,172.14,172.02,27.82]
[1746794784830,10.96314766,172.11,171.98,1.011378]
[1746794785027,5.813,172.06,172.02,5.8139]
[1746794785223,5.813,172.06,171.98,27.82]
[1746794785527,5.813,172.06,172.03,5.8134]
[1746794786230,5.8125,172.07,172.03,5.8134]
[1746794786730,5.8125,172.07,172.04,5.8134]
[1746794787029,27.82,172.1,172.06,1.0]
[1746794787336,33.507,172.14,172.06,1.0]
[1746794787633,27.82,172.14,172.06,1.0]
[1746794787836,81.90278057,172.16,172.06,1.0]
[1746794788328,81.90278057,172.16,172.09,5.8117]
[1746794788532,5.8101,172.14,172.09,5.8117]
[1746794789733,27.8,172.19,172.08,33.612]
[1746794789937,10.96314766,172.17,172.06,1.0]
[1746794790235,5.812,172.09,172.06,1.0]
[1746794790432,5.812,172.09,172.06,6.8127]
[1746794790632,5.812,172.09,172.06,1.0]
[1746794790930,27.8,172.13,172.08,5.8121]
[1746794791131,27.8,172.13,172.06,1.0]
[1746794791330,5.8116,172.1,172.06,1.0]
[1746794791833,5.8112,172.11,172.06,1.0]
[1746794792536,10.96314766,172.17,172.06,1.0]
[1746794792833,27.8,172.15,172.06,1.0]
[1746794793332,27.8,172.17,172.06,1.0]
[1746794793636,5.8101,172.14,172.06,1.0]
[1746794794230,5.8101,172.14,172.1,5.8111]
[1746794794636,27.8,172.17,172.06,1.0]
[1746794794936,38.76314766,172.17,172.06,1.0]
[1746794795130,5.8124,172.07,172.06,1.0]
[1746794795530,27.8,172.11,172.06,1.0]
[1746794795737,27.8,172.11,171.98,4.8372985]
[1746794795933,27.8,172.11,172.01,5.8142]
[1746794796338,10.96314766,172.09,172.01,5.8142]
[1746794796838,10.96314766,172.09,171.98,31.6257]
[1746794797037,10.96314766,172.09,171.95,1.0]
[1746794797338,10.96314766,172.05,171.95,1.0]
[1746794797537,31.4453,172.04,171.95,1.0]
[1746794797740,10.96314766,172.01,171.95,1.0]
[1746794797926,10.96314766,172.01,171.92,1.0]
[1746794798127,10.96314766,171.97,171.92,1.0]
[1746794798335,38.76314766,171.97,171.92,1.0]
[1746794798934,44.57894766,171.97,171.92,6.8172]
[1746794799134,38.76314766,171.97,171.92,6.8172]
[1746794799335,38.76314766,171.97,171.92,1.0]
[1746794800431,5.8168,171.94,171.92,1.0]
[1746794800731,38.76314766,171.97,171.92,1.0]
[1746794801133,27.8,171.97,171.92,1.0]
[1746794801437,33.6152,171.99,171.92,1.0]
[1746794801941,27.8,171.99,171.92,1.0]
[1746794802432,5.8168,171.95,171.92,1.0]
[1746794802630,10.96314766,171.97,171.92,1.0]
[1746794802940,27.8,171.99,171.92,1.0]
[1746794803237,27.8,171.98,171.96,5.8159]
[1746794803439,27.8,171.98,171.92,1.0]
[1746794803742,27.8,171.98,171.96,5.816]
[1746794805144,27.8,171.98,171.97,5.8158]
[1746794805345,27.8,172.01,171.92,1.0]
[1746794805742,27.8,172.01,172.0,5.8148]
[1746794806153,3.6453,172.04,171.92,4.8313]
[1746794806154,1.7988,172.04,171.92,4.8313]
[1746794806841,1.7988,172.04,172.02,5.814]
[1746794807747,1.7988,172.04,171.96,27.8]
[1746794807943,1.7988,172.04,171.92,4.8313]
[1746794808146,1.7988,172.04,171.93,27.8]
[1746794808347,5.8141,172.02,171.98,5.8153]
[1746794808949,5.8145,172.01,171.98,5.8153]
[1746794809150,1.7988,172.04,171.97,5.8156]
[1746794809350,1.7988,172.04,171.93,27.8]
[1746794809548,5.8143,172.02,171.98,5.8152]
[1746794809749,1.7988,172.04,171.98,5.8152]
[1746794810052,1.7988,172.04,171.93,27.8]
[1746794810649,7.6123,172.04,172.0,5.8145]
[1746794810849,1.7988,172.04,171.93,27.8]
[1746794811256,1.7988,172.04,171.98,5.8153]
[1746794812161,1.7988,172.04,171.93,27.8]
[1746794812653,27.8,172.03,171.99,5.8149]
[1746794812953,33.6138,172.03,171.93,27.8]
[1746794813458,371.80084766,172.08,171.93,27.8]
[1746794813459,366.65,172.08,171.93,27.8]
[1746794813656,27.78,172.07,171.94,1.854]
[1746794813859,358.8935,172.08,171.94,1.854]
[1746794814054,27.78,172.08,171.95,11.6328]
[1746794814257,27.78,172.09,171.95,11.6328]
[1746794814457,27.78,172.09,172.05,5.8128]
[1746794814758,81.90278057,172.1,172.0,27.78]
[1746794814961,109.68278057,172.1,172.01,1.9462]
[1746794815261,33.5915,172.1,172.01,1.9462]
[1746794815464,27.78,172.11,172.08,5.8118]
[1746794815655,27.78,172.12,172.02,3.6529]
[1746794816051,27.78,172.12,172.1,5.8113]
[1746794816258,27.78,172.12,172.05,27.78]
[1746794816457,81.90278057,172.14,172.05,27.78]
[1746794816964,5.8101,172.14,172.05,27.78]
[1746794817163,5.8101,172.14,172.1,5.8112]
[1746794817564,390.5897,172.16,172.11,5.8109]
[1746794817761,27.78,172.16,172.05,27.78]
[1746794817961,5.8103,172.14,172.05,27.78]
[1746794818156,27.78,172.16,172.05,27.78]
[1746794818559,5.8107,172.12,172.05,27.78]
[1746794818759,27.78,172.16,172.07,5.8124]
[1746794818959,27.78,172.16,172.05,27.78]
[1746794819161,27.78,172.16,172.04,5.8134]
[1746794819362,27.78,172.16,172.02,3.6529]
[1746794819562,27.76,172.15,172.02,3.6529]
[1746794819761,5.8101,172.14,172.02,3.6529]
[1746794819960,5.8101,172.14,172.1,5.8112]
[1746794820258,5.8095,172.16,172.06,27.76]
[1746794820663,33.5688,172.18,172.06,27.76]
[1746794820966,1.989,172.19,172.06,27.76]
[1746794821165,5.8091,172.17,172.06,27.76]
[1746794821359,27.76,172.2,172.06,27.76]
[1746794821561,83.75128057,172.21,172.15,5.8094]
[1746794821864,27.76,172.2,172.06,27.76]
[1746794822065,27.76,172.2,172.13,5.8101]
[1746794822364,27.76,172.2,172.06,27.76]
[1746794822564,5.809,172.18,172.06,27.76]
[1746794822865,5.809,172.18,172.14,5.81]
[1746794823268,5.8091,172.17,172.14,5.81]
[1746794823468,5.8091,172.17,172.13,5.8103]
[1746794823764,27.76,172.2,172.06,27.76]
[1746794823959,27.76,172.2,172.13,5.8103]
[1746794824359,553.32592823,172.26,172.12,27.76]
[1746794824360,27.76,172.23,172.12,27.76]
[1746794824563,27.76,172.23,172.13,5.5291]
[1746794825065,27.76,172.23,172.12,27.76]
[1746794825266,27.76,172.23,172.11,5.8109]
[1746794825468,27.76,172.23,172.08,27.76]
[1746794826661,5.8078,172.21,172.17,5.809]
[1746794826861,27.76,172.23,172.13,27.74]
[1746794827068,27.76,172.23,172.14,5.6723]
[1746794827267,27.76,172.23,172.18,5.8085]
[1746794827467,27.76,172.23,172.14,5.6723]
[1746794828269,1.8644,172.26,172.17,5.8088]
[1746794828470,29.6936,172.25,172.14,5.6723]
[1746794829269,5.8085,172.19,172.14,11.4822]
[1746794829570,29.6936,172.25,172.14,5.6723]
[1746794829971,5.8093,172.17,172.14,5.6723]
[1746794830166,29.6936,172.25,172.13,27.74]
[1746794830368,10.96314766,172.23,172.08,39.2432]
[1746794830765,10.96314766,172.19,172.08,39.2432]
[1746794830972,5.8113,172.11,172.08,33.4311]
[1746794831170,29.6426,172.18,172.08,5.6911]
[1746794831570,29.6426,172.18,172.09,5.8114]
[1746794831972,29.6426,172.18,172.08,5.6911]
[1746794832265,27.74,172.18,172.08,5.6911]
[1746794833173,5.8095,172.16,172.12,5.8105]
[1746794833374,27.74,172.18,172.11,27.72]
[1746794833575,27.72,172.24,172.11,27.72]
[1746794834374,5.8089,172.18,172.14,5.8098]
[1746794834764,27.72,172.24,172.11,27.72]
[1746794834973,5.8086,172.19,172.11,27.72]
[1746794835271,27.72,172.24,172.11,27.72]
[1746794836677,5.8091,172.17,172.11,27.72]
[1746794837170,5.8091,172.17,172.13,5.8102]
[1746794837577,5.8091,172.17,172.08,5.6911]
[1746794837578,27.72,172.19,172.08,5.6911]
[1746794837767,10.96314766,172.18,172.05,28.73096666]
[1746794837971,10.96314766,172.14,172.03,464.3294]
[1746794838171,27.72,172.13,172.04,5.8133]
[1746794838778,5.8123,172.08,172.04,5.8133]
[1746794839077,5.8119,172.09,172.05,5.8131]
[1746794839677,5.8119,172.09,172.06,5.8127]
[1746794839877,5.8115,172.1,172.06,5.8127]
[1746794840180,27.72,172.13,172.05,5.813]
[1746794840373,5.8128,172.06,171.99,1.9558]
[1746794840675,5.8128,172.06,172.02,5.8138]
[1746794840979,5.8125,172.07,171.99,29.6758]
[1746794841177,27.72,172.08,171.99,29.6758]
[1746794841774,27.72,172.08,171.99,1.9558]
[1746794841978,27.72,172.08,172.0,27.72]
[1746794842680,33.5323,172.08,172.0,27.72]
[1746794842975,27.72,172.08,171.99,1.9558]
[1746794843483,10.96314766,172.06,171.96,5.816]
[1746794843776,1.8732,172.05,171.92,1.0]
[1746794844082,1.8732,172.05,171.95,5.8164]
[1746794844378,1.8732,172.05,171.92,1.0]
[1746794844778,1.8732,172.05,171.96,5.8158]
[1746794845082,5.8148,172.0,171.96,5.8158]
[1746794845479,1.8732,172.05,171.92,1.0]
[1746794845679,5.814,172.03,171.92,1.0]
[1746794845880,27.72,172.04,171.92,1.0]
[1746794846180,5.8145,172.01,171.92,1.0]
[1746794846480,27.72,172.04,171.92,1.0]
[1746794847182,10.96314766,172.03,171.94,5.8168]
[1746794847384,10.96314766,172.03,171.92,1.0]
[1746794847684,27.72,172.04,171.92,1.0]
[1746794847874,5.8155,171.98,171.92,1.0]
[1746794848072,27.72,171.99,171.92,1.0]
[1746794848275,27.72,171.99,171.94,5.8168]
[1746794848683,5.8157,171.98,171.94,5.8168]
[1746794848981,27.72,171.99,171.93,5.8171]
[1746794849983,5.816,171.97,171.94,5.8168]
[1746794850381,33.5352,171.99,171.95,5.8162]
[1746794850583,27.72,172.02,171.92,2.0]
[1746794850984,33.5343,172.02,171.98,5.8154]
[1746794851585,27.72,172.02,171.92,2.0]
[1746794851786,27.72,172.01,171.92,2.0]
[1746794852287,27.72,172.02,171.92,2.0]
[1746794852585,5.8147,172.01,171.92,2.0]
[1746794852880,27.72,172.02,171.92,2.0]
[1746794853085,5.8151,171.99,171.95,5.8165]
[1746794853988,5.8151,171.99,171.96,5.8161]
[1746794854582,27.72,172.02,171.92,2.0]
[1746794854984,10.96314766,171.99,171.92,2.0]
[1746794855185,5.8171,171.93,171.92,2.0]
[1746794855587,33.5369,171.94,171.92,2.0]
[1746794856288,5.8171,171.93,171.92,2.0]
[1746794858290,33.5368,171.94,171.92,2.0]
[1746794858488,27.72,171.94,171.92,2.0]
[1746794858880,5.5642,171.98,171.92,2.0]
[1746794858881,3.7351,171.98,171.92,2.0]
[1746794859089,27.72,172.0,171.92,2.0]
[1746794859288,1.8892,172.03,171.97,5.8155]
[1746794859289,3.7749,172.03,171.97,5.8155]
[1746794859486,27.72,172.02,171.97,5.8155]
[1746794859885,5.8147,172.01,171.92,2.0]
[1746794860283,27.72,172.02,171.92,2.0]
[1746794860992,5.8148,172.01,171.95,5.8165]
[1746794861184,27.72,172.02,171.95,5.8165]
[1746794861585,27.72,172.02,171.92,2.0]
[1746794862088,27.72,172.02,171.93,5.8169]
[1746794862089,5.816,171.97,171.93,5.8169]
[1746794862790,5.8161,171.96,171.93,5.8169]
[1746794863286,5.8171,171.93,171.92,2.0]
[1746794864788,5.8165,171.95,171.92,2.0]
[1746794865289,33.5358,171.97,171.92,2.0]
[1746794865490,27.72,171.97,171.92,2.0]
[1746794865894,1.8943,172.02,171.92,29.72]
[1746794866186,81.90278057,172.04,171.92,29.72]
[1746794866391,81.90278057,172.04,171.93,5.6756]
[1746794866690,81.90278057,172.04,172.01,5.8143]
[1746794867093,5.8135,172.04,172.0,5.8147]
[1746794867294,5.8135,172.04,171.93,5.6756]
[1746794867590,5.8133,172.05,172.01,5.8142]
[1746794867794,27.72,172.06,172.01,5.8142]
[1746794868290,27.72,172.06,172.0,5.8147]
[1746794868990,5.8136,172.04,172.01,5.8144]
[1746794869694,27.72,172.06,171.93,5.6756]
[1746794870393,5.8135,172.04,172.01,5.8142]
[1746794870693,27.72,172.06,171.93,5.6756]
[1746794870890,5.8127,172.07,172.03,5.8136]
[1746794871099,5.8127,172.07,171.94,27.7]
[1746794872391,5.8127,172.07,172.03,5.8136]
[1746794872696,85.73618057,172.08,171.94,27.7]
[1746794873297,81.90278057,172.08,171.94,27.7]
[1746794873598,81.90278057,172.08,172.07,5.8124]
[1746794874187,81.90278057,172.08,172.04,27.7]
[1746794874700,81.90278057,172.08,172.07,5.8124]
[1746794875096,138.16304873,172.1,172.05,5.6407]
[1746794875293,5.85593469,172.11,172.05,5.6407]
[1746794875693,136.83424097,172.14,172.11,5.8108]
[1746794877601,5.8099,172.15,172.11,5.8108]
[1746794878202,5.8099,172.15,172.12,5.8107]
[1746794878396,27.7,172.16,172.12,5.8107]
[1746794878597,31.5311,172.19,172.09,27.68]
[1746794879197,5.8091,172.17,172.13,5.8102]
[1746794880102,5.8088,172.18,172.14,5.8097]
[1746794880294,3.8511,172.19,172.09,27.68]
[1746794880696,27.68,172.2,172.17,5.809]
[1746794880896,1.8661,172.21,172.17,5.809]
[1746794881101,27.68,172.23,172.09,27.68]
[1746794881503,27.68,172.23,172.1,27.68]
[1746794881803,27.68,172.23,172.13,5.8104]
[1746794882101,3.6486,172.24,172.1,27.68]
[1746794882305,5.8076,172.22,172.18,5.8085]
[1746794882597,1.9831,172.25,172.15,27.68]
[1746794882804,5.8058,172.27,172.22,5.8073]
[1746794883101,27.68,172.28,172.16,5.621]
[1746794883305,5.807,172.23,172.19,5.8082]
[1746794883702,27.68,172.28,172.19,5.8082]
[1746794884003,5.8076,172.22,172.18,5.8087]
[1746794884202,10.9378006,172.27,172.16,5.621]
[1746794884704,10.9378006,172.27,172.15,27.68]
[1746794885101,5.8076,172.22,172.17,5.8088]
[1746794885296,10.9378006,172.28,172.15,27.68]
[1746794885502,27.66,172.27,172.15,27.68]
[1746794886206,5.8073,172.23,172.19,5.8081]
[1746794886400,10.9378006,172.28,172.15,27.68]
[1746794886600,27.66,172.28,172.15,27.68]
[1746794886905,5.8064,172.25,172.21,5.8075]
[1746794887205,27.66,172.28,172.21,5.8075]
[1746794887400,27.66,172.28,172.15,27.68]
[1746794888306,5.8076,172.22,172.15,27.68]
[1746794888502,5.8076,172.22,172.18,5.8085]
[1746794888707,5.8076,172.22,172.15,27.68]
[1746794889207,27.66,172.28,172.15,27.68]
[1746794890203,5.8066,172.25,172.15,27.68]
[1746794890710,5.8066,172.25,172.21,5.8074]
[1746794891010,5.8066,172.25,172.15,27.68]
[1746794891908,5.8061,172.26,172.22,5.8073]
[1746794892119,27.66,172.29,172.22,5.8073]
[1746794892511,5.8063,172.26,172.22,5.8073]
[1746794892712,5.8063,172.26,172.23,5.807]
[1746794893512,3.8314,172.3,172.24,5.8066]
[1746794893711,1.9923,172.3,172.24,5.8066]
[1746794893912,1.9923,172.3,172.2,27.64]
[1746794894512,29.6323,172.3,172.2,27.64]
[1746794894712,5.8051,172.29,172.26,5.806]
[1746794895211,5.8055,172.28,172.24,5.8064]
[1746794895412,29.6231,172.32,172.24,5.8064]
[1746794895811,5.8056,172.28,172.24,5.8064]
[1746794896008,29.6231,172.32,172.24,5.8064]
[1746794896209,29.6231,172.32,172.23,5.8069]
[1746794896409,5.8059,172.27,172.21,3.8659]
[1746794896814,5.8059,172.27,172.23,5.8068]
[1746794897211,5.8059,172.27,172.21,3.8659]
[1746794897212,5.8054,172.28,172.21,3.8659]
[1746794898013,5.8054,172.28,172.24,5.8064]
[1746794898810,5.8054,172.28,172.25,5.8063]
[1746794899015,29.6231,172.32,172.21,3.8659]